fUSD/lending_fUSD_20241225
["ID","MTS","AMOUNT","RATE_DAILY","PERIOD"]
[346659929,1735158649393,-500.0,0.00012527,2]
[346659930,1735158649402,-500.0,0.00012527,2]
[346659931,1735158649412,-500.0,0.00012527,2]
[346659932,1735158649421,-500.0,0.00012527,2]
[346659933,1735158649430,-500.0,0.00012527,2]
[346659934,1735158649439,-500.0,0.00012527,2]
[346659935,1735158649449,-500.0,0.00012527,2]
[346659936,1735158649458,-500.0,0.00012527,2]
[346659937,1735158649468,-500.0,0.00012527,2]
[346659938,1735158649477,-500.0,0.00012527,2]
[346659939,1735158649486,-500.0,0.00012527,2]
[346659940,1735158649496,-500.0,0.00012527,2]
[346659941,1735158649505,-500.0,0.00012527,2]
[346659942,1735158649515,-500.0,0.00012527,2]
[346659943,1735158649524,-500.0,0.00012527,2]
[346659944,1735158649534,-500.0,0.00012527,2]
[346659945,1735158649544,-500.0,0.00012527,2]
[346659946,1735158649553,-500.0,0.00012527,2]
[346659947,1735158649563,-439.6269787,0.00012527,2]
[346659948,1735158649572,-500.0,0.00012527,2]
[346659949,1735158649582,-500.0,0.00012527,2]
[346659950,1735158649591,-500.0,0.00012527,2]
[346659951,1735158649600,-151.0,0.00012527,2]
[346659952,1735158649609,-500.0,0.00012527,2]
[346659953,1735158649618,-151.0,0.00012527,2]
[346659954,1735158649629,-500.0,0.00012527,2]
[346659955,1735158649640,-500.0,0.00012527,2]
[346659956,1735158649649,-500.0,0.00012527,2]
[346659957,1735158649659,-151.0,0.00012527,2]
[346659958,1735158649668,-500.0,0.00012527,2]
[346659959,1735158649679,-151.0,0.00012527,2]
[346659960,1735158649688,-500.0,0.00012527,2]
[346659961,1735158649698,-151.0,0.00012527,2]
[346659962,1735158649708,-500.0,0.00012527,2]
[346659963,1735158649718,-2150.04,0.00012527,2]
[346659964,1735158649727,-500.0,0.00012527,2]
[346659965,1735158649736,-500.0,0.00012527,2]
[346659966,1735158649746,-500.0,0.00012527,2]
[346659967,1735158649755,-2549.64,0.00012527,2]
[346659968,1735158649764,-500.0,0.00012527,2]
[346659969,1735158649774,-500.0,0.00012527,2]
[346659970,1735158649784,-500.0,0.00012527,2]
[346659971,1735158649793,-500.0,0.00012527,2]
[346659972,1735158649803,-11534.51,0.00012527,2]
[346659973,1735158649812,-500.0,0.00012527,2]
[346659974,1735158649821,-500.0,0.00012527,2]
[346659975,1735158649831,-500.0,0.00012527,2]
[346659976,1735158649840,-500.0,0.00012527,2]
[346659977,1735158649849,-825.73,0.00012527,2]
[346659978,1735158649859,-151.0,0.00012527,2]
[346659979,1735158649869,-966.12,0.00012527,2]
[346659980,1735158649879,-500.0,0.00012527,2]
[346659981,1735158649889,-500.0,0.00012527,2]
[346659982,1735158649899,-534.27,0.00012527,2]
[346659983,1735158649909,-500.0,0.00012527,2]
[346659984,1735158649918,-500.0,0.00012527,2]
[346659985,1735158649928,-500.0,0.00012527,2]
[346659986,1735158649938,-500.0,0.00012527,2]
[346659987,1735158649948,-1538.83,0.00012527,2]
[346659988,1735158649957,-500.0,0.00012527,2]
[346659989,1735158649967,-500.0,0.00012527,2]
[346659990,1735158649976,-500.0,0.00012527,2]
[346659991,1735158649986,-8815.65,0.00012527,2]
[346659992,1735158649995,-151.0,0.00012527,2]
[346659993,1735158650005,-290.0,0.00012527,2]
[346659994,1735158650015,-500.0,0.00012527,2]
[346659995,1735158650025,-500.0,0.00012527,2]
[346659996,1735158650035,-500.0,0.00012527,2]
[346659997,1735158650044,-500.0,0.00012527,2]
[346659998,1735158650054,-500.0,0.00012527,2]
[346659999,1735158650063,-151.0,0.00012527,2]
[346660000,1735158650073,-500.0,0.00012527,2]
[346660001,1735158650083,-1084.65,0.00012527,2]
[346660002,1735158650092,-500.0,0.00012527,2]
[346660003,1735158650101,-506.10517191,0.00012527,2]
[346660004,1735158650110,-500.0,0.00012527,2]
[346660005,1735158650120,-500.0,0.00012527,2]
[346660006,1735158650129,-500.0,0.00012527,2]
[346660007,1735158650138,-935.35,0.00012527,2]
[346660008,1735158650147,-575.56,0.00012527,2]
[346660009,1735158650156,-500.0,0.00012527,2]
[346660010,1735158650166,-500.0,0.00012527,2]
[346660011,1735158650175,-500.0,0.00012527,2]
[346660012,1735158650185,-500.0,0.00012527,2]
[346660013,1735158650195,-500.0,0.00012527,2]
[346660014,1735158650204,-500.0,0.00012527,2]
[346660015,1735158650214,-1232.29,0.00012527,2]
[346660016,1735158650224,-628.81,0.00012527,2]
[346660017,1735158650234,-500.0,0.00012527,2]
[346660018,1735158650243,-500.0,0.00012527,2]
[346660019,1735158650253,-506.68,0.00012527,2]
[346660020,1735158650262,-500.0,0.00012527,2]
[346660021,1735158650271,-500.0,0.00012527,2]
[346660022,1735158650281,-500.0,0.00012527,2]
[346660023,1735158650290,-1000.0,0.00012527,2]
[346660024,1735158650299,-500.0,0.00012527,2]
[346660025,1735158650310,-151.0,0.00012527,2]
[346660026,1735158650319,-777.24,0.00012527,2]
[346660027,1735158650329,-500.0,0.00012527,2]
[346660028,1735158650339,-500.0,0.00012527,2]
[346660029,1735158650348,-500.0,0.00012527,2]
[346660030,1735158650357,-829.41,0.00012527,2]
[346660031,1735158650367,-500.0,0.00012527,2]
[346660032,1735158650377,-500.0,0.00012527,2]
[346660033,1735158650386,-1758.38,0.00012527,2]
[346660034,1735158650396,-532.06,0.00012527,2]
[346660035,1735158650406,-500.0,0.00012527,2]
[346660036,1735158650415,-151.0,0.00012527,2]
[346660037,1735158650425,-500.0,0.00012527,2]
[346660038,1735158650434,-500.0,0.00012527,2]
[346660039,1735158650444,-500.0,0.00012527,2]
[346660040,1735158650453,-926.27,0.00012527,2]
[346660041,1735158650462,-500.0,0.00012527,2]
[346660042,1735158650472,-500.0,0.00012527,2]
[346660043,1735158650481,-500.0,0.00012527,2]
[346660044,1735158650490,-151.0,0.00012527,2]
[346660045,1735158650500,-500.0,0.00012527,2]
[346660046,1735158650509,-267.46257723,0.00012527,2]
[346660047,1735158650519,-151.0,0.00012527,2]
[346660048,1735158650529,-151.0,0.00012527,2]
[346660049,1735158650538,-500.0,0.00012527,2]
[346660050,1735158650548,-500.0,0.00012527,2]
[346660051,1735158650559,-537.32440273,0.00012527,2]
[346660052,1735158650568,-500.0,0.00012527,2]
[346660053,1735158650578,-500.0,0.00012527,2]
[346660054,1735158650587,-500.0,0.00012527,2]
[346660055,1735158650597,-46693.9043547,0.00012527,2]
[346660056,1735158650606,-500.0,0.00012528,2]
[346660057,1735158650615,-151.0,0.00012528,2]
[346660058,1735158650625,-151.0,0.00012528,2]
[346660059,1735158650636,-152.057677,0.00012528,2]
[346660060,1735158650645,-151.0,0.00012528,2]
[346660061,1735158650655,-500.0,0.00012528,2]
[346660062,1735158650664,-500.0,0.00012528,2]
[346660063,1735158650675,-500.0,0.00012528,2]
[346660064,1735158650684,-500.0,0.00012528,2]
[346660065,1735158650694,-500.0,0.00012528,2]
[346660066,1735158650705,-500.0,0.00012528,2]
[346660067,1735158650714,-151.0,0.00012528,2]
[346660068,1735158650724,-500.0,0.00012528,2]
[346660069,1735158650733,-500.0,0.00012528,2]
[346660070,1735158650743,-500.0,0.00012528,2]
[346660071,1735158650753,-500.0,0.00012528,2]
[346660072,1735158650762,-500.0,0.00012528,2]
[346660073,1735158650932,-635.64,0.00012528,2]
[346660074,1735158650949,-151.0,0.00012528,2]
[346660075,1735158650959,-500.0,0.00012528,2]
[346660076,1735158650968,-500.0,0.00012528,2]
[346660077,1735158650978,-500.0,0.00012528,2]
[346660078,1735158650987,-500.0,0.00012528,2]
[346660079,1735158650997,-500.0,0.00012528,2]
[346660080,1735158651006,-500.0,0.00012528,2]
[346660081,1735158651015,-233.823734,0.00012528,2]
[346660082,1735158651025,-500.0,0.00012528,2]
[346660083,1735158651034,-500.0,0.00012528,2]
[346660084,1735158651044,-500.0,0.00012528,2]
[346660085,1735158651053,-500.0,0.00012528,2]
[346660086,1735158651063,-500.0,0.00012528,2]
[346660087,1735158651072,-500.0,0.00012528,2]
[346660088,1735158651082,-345.77,0.00012528,2]
[346660089,1735158651091,-500.0,0.00012528,2]
[346660090,1735158651101,-500.0,0.00012528,2]
[346660091,1735158651110,-597.66,0.00012528,2]
[346660092,1735158651119,-500.0,0.00012528,2]
[346660093,1735158651129,-500.0,0.00012528,2]
[346660094,1735158651138,-500.0,0.00012528,2]
[346660095,1735158651147,-228.3,0.00012528,2]
[346660096,1735158651157,-500.0,0.00012528,2]
[346660097,1735158651166,-500.0,0.00012528,2]
[346660098,1735158651175,-500.0,0.00012528,2]
[346660099,1735158651184,-500.0,0.00012528,2]
[346660100,1735158651194,-500.0,0.00012528,2]
[346660101,1735158651203,-500.0,0.00012528,2]
[346660102,1735158651212,-500.0,0.00012528,2]
[346660103,1735158651222,-500.0,0.00012528,2]
[346660104,1735158651231,-500.0,0.00012528,2]
[346660105,1735158651241,-500.0,0.00012528,2]
[346660106,1735158651250,-500.0,0.00012528,2]
[346660107,1735158651259,-500.0,0.00012528,2]
[346660108,1735158651268,-500.0,0.00012528,2]
[346660109,1735158651278,-151.0,0.00012528,2]
[346660110,1735158651288,-190.024704,0.00012528,2]
[346660111,1735158651297,-151.0,0.00012528,2]
[346660112,1735158651306,-500.0,0.00012528,2]
[346660113,1735158651316,-151.0,0.00012528,2]
[346660114,1735158651325,-500.0,0.00012528,2]
[346660115,1735158651334,-500.0,0.00012528,2]
[346660116,1735158651344,-747.69,0.00012528,2]
[346660117,1735158651353,-500.0,0.00012528,2]
[346660118,1735158651362,-500.0,0.00012528,2]
[346660119,1735158651372,-553.67,0.00012528,2]
[346660120,1735158651381,-500.0,0.00012528,2]
[346660121,1735158651391,-500.0,0.00012528,2]
[346660122,1735158651400,-500.0,0.00012528,2]
[346660123,1735158651409,-500.0,0.00012528,2]
[346660124,1735158651419,-826.26,0.00012528,2]
[346660125,1735158651428,-500.0,0.00012528,2]
[346660126,1735158651438,-500.0,0.00012528,2]
[346660127,1735158651447,-500.0,0.00012528,2]
[346660128,1735158651458,-500.0,0.00012528,2]
[346660129,1735158651468,-500.0,0.00012528,2]
[346660130,1735158651478,-500.0,0.00012528,2]
[346660131,1735158651487,-258.19,0.00012528,2]
[346660132,1735158651496,-500.0,0.00012528,2]
[346660133,1735158651506,-500.0,0.00012528,2]
[346660134,1735158651516,-411.71,0.00012528,2]
[346660135,1735158651525,-500.0,0.00012528,2]
[346660136,1735158651535,-789.28755,0.00012528,2]
[346660137,1735158651544,-500.0,0.00012529,2]
[346660138,1735158651554,-151.0,0.00012529,2]
[346660139,1735158651563,-151.963016,0.00012529,2]
[346660140,1735158651573,-500.0,0.00012529,2]
[346660141,1735158651582,-606.55,0.00012529,2]
[346660142,1735158651592,-1302.04,0.00012529,2]
[346660143,1735158651601,-500.0,0.00012529,2]
[346660144,1735158651610,-500.0,0.00012529,2]
[346660145,1735158651620,-500.0,0.00012529,2]
[346660146,1735158651631,-500.0,0.00012529,2]
[346660147,1735158651641,-500.0,0.00012529,2]
[346660148,1735158651650,-500.0,0.00012529,2]
[346660149,1735158651659,-500.0,0.00012529,2]
[346660150,1735158651668,-586.38,0.00012529,2]
[346660151,1735158651678,-500.0,0.00012529,2]
[346660152,1735158651687,-526.31,0.00012529,2]
[346660153,1735158651696,-500.0,0.00012529,2]
[346660154,1735158651708,-500.0,0.00012529,2]
[346660155,1735158651718,-500.0,0.00012529,2]
[346660156,1735158651728,-151.0,0.00012529,2]
[346660157,1735158651737,-242.984178,0.00012529,2]
[346660158,1735158651746,-182.44171554,0.00012531,2]
[346660159,1735158651756,-4523.34109135,0.00012532,2]
[346660160,1735158651765,-182.44171554,0.00012583,2]
[346660161,1735158651775,-4523.34109135,0.00012585,2]
[346660162,1735158651784,-1000.0,0.000126,2]
[346660163,1735158651794,-4523.34109135,0.00012637,2]
[346660164,1735158651803,-4523.34109135,0.0001269,2]
[346660165,1735158651812,-176.13497659,0.00012699,2]
[346660166,1735158651822,-4523.34109135,0.00012742,2]
[346660167,1735158651832,-360.64,0.00012785,2]
[346660168,1735158651842,-4523.34109135,0.00012795,2]
[346660169,1735158651852,-500.0,0.00012799,2]
[346660170,1735158651861,-1274.44,0.00012799,2]
[346660171,1735158651872,-302.53,0.00012799,2]
[346660172,1735158651881,-2405.07,0.00012799,2]
[346660173,1735158651891,-655.8,0.00012799,2]
[346660174,1735158651901,-1580.78,0.00012799,2]
[346660175,1735158651910,-1532.32,0.00012799,2]
[346660176,1735158651920,-3424.88,0.00012799,2]
[346660177,1735158651929,-756.87,0.00012799,2]
[346660178,1735158651939,-500.0,0.00012799,2]
[346660179,1735158651948,-500.0,0.00012799,2]
[346660180,1735158651957,-850.69,0.00012799,2]
[346660181,1735158651967,-507.159968,0.00012799,2]
[346660182,1735158651976,-777.93,0.00012799,2]
[346660183,1735158651986,-606.358213,0.00012799,2]
[346660184,1735158651995,-500.0,0.00012799,2]
[346660185,1735158652004,-1193.09,0.00012799,2]
[346660186,1735158652014,-970.85,0.00012799,2]
[346660187,1735158652024,-2816.85,0.00012799,2]
[346660188,1735158652034,-704.99,0.00012799,2]
[346660189,1735158652044,-833.97,0.00012799,2]
[346660190,1735158652053,-1032.65,0.00012799,2]
[346660191,1735158652062,-591.76,0.00012799,2]
[346660192,1735158652072,-751.17,0.00012799,2]
[346660193,1735158652081,-500.0,0.00012799,2]
[346660194,1735158652091,-1375.25,0.00012799,2]
[346660195,1735158652100,-507.25,0.00012799,2]
[346660196,1735158652109,-5410.6,0.00012799,2]
[346660197,1735158652119,-1138.94,0.00012799,2]
[346660198,1735158652128,-1207.77,0.00012799,2]
[346660199,1735158652137,-1001.22,0.00012799,2]
[346660200,1735158652146,-500.0,0.00012799,2]
[346660201,1735158652156,-6183.94,0.00012799,2]
[346660202,1735158652165,-5135.02,0.00012799,2]
[346660203,1735158652175,-1106.21,0.00012799,2]
[346660204,1735158652183,-2018.17,0.00012799,2]
[346660205,1735158652193,-1612.11,0.00012799,2]
[346660206,1735158652203,-3229.07,0.00012799,2]
[346660207,1735158652213,-998.7,0.00012799,2]
[346660208,1735158652223,-500.0,0.00012799,2]
[346660209,1735158652233,-878.69,0.00012799,2]
[346660210,1735158652242,-2377.33,0.00012799,2]
[346660211,1735158652251,-1127.38,0.00012799,2]
[346660212,1735158652261,-1248.8,0.00012799,2]
[346660213,1735158652270,-1337.61,0.00012799,2]
[346660214,1735158652279,-1983.38,0.00012799,2]
[346660215,1735158652289,-1382.04,0.00012799,2]
[346660216,1735158652299,-2138.39,0.00012799,2]
[346660217,1735158652309,-938.36,0.00012799,2]
[346660218,1735158652318,-5771.77,0.00012799,2]
[346660219,1735158652327,-500.0,0.00012799,2]
[346660220,1735158652337,-1183.58,0.00012799,2]
[346660221,1735158652347,-500.0,0.00012799,2]
[346660222,1735158652355,-5829.64,0.00012799,2]
[346660223,1735158652365,-176.13497658,0.00012799,2]
[346660224,1735158652374,-551.87,0.00012799,2]
[346660225,1735158652383,-500.0,0.00012799,2]
[346660226,1735158652393,-1550.82,0.00012799,2]
[346660227,1735158652403,-500.0,0.00012799,2]
[346660228,1735158652412,-500.0,0.00012799,2]
[346660229,1735158652421,-694.72,0.00012799,2]
[346660230,1735158652430,-500.0,0.00012799,2]
[346660231,1735158652440,-500.0,0.00012799,2]
[346660232,1735158652449,-500.0,0.00012799,2]
[346660233,1735158652459,-549.8,0.00012799,2]
[346660234,1735158652468,-1474.87,0.00012799,2]
[346660235,1735158652478,-500.0,0.00012799,2]
[346660236,1735158652488,-861.88,0.00012799,2]
[346660237,1735158652501,-500.0,0.00012799,2]
[346660238,1735158652510,-213.97,0.00012799,2]
[346660239,1735158652520,-355.17,0.00012799,2]
[346660240,1735158652530,-500.0,0.00012799,2]
[346660241,1735158652540,-649.28828099,0.000128,2]
[346660242,1735158652550,-363.25,0.000128,2]
[346660243,1735158652559,-500.0,0.000128,2]
[346660244,1735158652569,-159.96,0.000128,2]
[346660245,1735158652578,-500.0,0.000128,2]
[346660246,1735158652587,-500.0,0.000128,2]
[346660247,1735158652597,-500.0,0.000128,2]
[346660248,1735158652607,-500.0,0.000128,2]
[346660249,1735158652617,-500.0,0.000128,2]
[346660250,1735158652627,-500.0,0.000128,2]
[346660251,1735158652639,-500.0,0.000128,2]
[346660252,1735158652648,-486.27,0.000128,2]
[346660253,1735158652658,-500.0,0.000128,2]
[346660254,1735158652668,-191.55,0.000128,2]
[346660255,1735158652679,-500.0,0.000128,2]
[346660256,1735158652688,-466.82,0.000128,2]
[346660257,1735158652697,-370.95,0.000128,2]
[346660258,1735158652709,-500.0,0.000128,2]
[346660259,1735158652719,-500.0,0.000128,2]
[346660260,1735158652729,-500.0,0.000128,2]
[346660261,1735158652740,-500.0,0.000128,2]
[346660262,1735158652750,-500.0,0.000128,2]
[346660263,1735158652759,-243.46,0.000128,2]
[346660264,1735158652769,-178.59,0.000128,2]
[346660265,1735158652778,-500.0,0.000128,2]
[346660266,1735158652788,-219.24,0.000128,2]
[346660267,1735158652798,-500.0,0.000128,2]
[346660268,1735158652807,-500.0,0.000128,2]
[346660269,1735158652817,-500.0,0.000128,2]
[346660270,1735158652827,-500.0,0.000128,2]
[346660271,1735158652838,-500.0,0.000128,2]
[346660272,1735158652848,-500.0,0.000128,2]
[346660273,1735158652858,-500.0,0.000128,2]
[346660274,1735158652868,-281.49,0.000128,2]
[346660275,1735158652878,-500.0,0.000128,2]
[346660276,1735158652887,-239.16,0.000128,2]
[346660277,1735158652897,-500.0,0.000128,2]
[346660278,1735158652907,-500.0,0.000128,2]
[346660279,1735158652917,-207.28952391,0.000128,2]
[346660280,1735158653273,-344.65047609,0.000128,2]
[346660281,1735158653283,-500.0,0.000128,2]
[346660282,1735158653295,-500.0,0.000128,2]
[346660283,1735158653304,-227.95,0.000128,2]
[346660284,1735158653313,-623.31,0.000128,2]
[346660285,1735158653322,-500.0,0.000128,2]
[346660286,1735158653332,-500.0,0.000128,2]
[346660287,1735158653342,-500.0,0.000128,2]
[346660288,1735158653351,-500.0,0.000128,2]
[346660289,1735158653360,-665.73,0.000128,2]
[346660290,1735158653369,-151.0,0.000128,2]
[346660291,1735158653378,-500.0,0.000128,2]
[346660292,1735158653388,-500.0,0.000128,2]
[346660293,1735158653397,-500.0,0.000128,2]
[346660294,1735158653406,-548.23,0.000128,2]
[346660295,1735158653415,-500.0,0.000128,2]
[346660296,1735158653425,-500.0,0.000128,2]
[346660297,1735158653434,-500.0,0.000128,2]
[346660298,1735158653444,-500.0,0.000128,2]
[346660299,1735158653454,-500.0,0.000128,2]
[346660300,1735158653463,-500.0,0.000128,2]
[346660301,1735158653472,-500.0,0.000128,2]
[346660302,1735158653483,-263.19747386,0.000128,2]
[346660303,1735158653492,-626.46,0.000128,2]
[346660304,1735158653501,-500.0,0.000128,2]
[346660305,1735158653510,-523.7,0.000128,2]
[346660306,1735158653519,-697.18,0.000128,2]
[346660307,1735158653528,-990.34,0.000128,2]
[346660308,1735158653537,-2222.06,0.000128,2]
[346660309,1735158653546,-500.0,0.000128,2]
[346660310,1735158653555,-500.0,0.000128,2]
[346660311,1735158653564,-1490.97,0.000128,2]
[346660312,1735158653574,-500.0,0.000128,2]
[346660313,1735158653583,-1288.2,0.000128,2]
[346660314,1735158653592,-500.0,0.000128,2]
[346660315,1735158653601,-310.31,0.000128,2]
[346660316,1735158653610,-500.0,0.000128,2]
[346660317,1735158653619,-3732.09,0.000128,2]
[346660318,1735158653629,-500.0,0.000128,2]
[346660319,1735158653639,-2919.46,0.000128,2]
[346660320,1735158653649,-500.0,0.000128,2]
[346660321,1735158653658,-1046.56,0.000128,2]
[346660322,1735158653667,-500.0,0.000128,2]
[346660323,1735158653678,-1670.73,0.000128,2]
[346660324,1735158653687,-500.0,0.000128,2]
[346660325,1735158653696,-500.0,0.000128,2]
[346660326,1735158653707,-846.23,0.000128,2]
[346660327,1735158653717,-500.0,0.000128,2]
[346660328,1735158653727,-500.0,0.000128,2]
[346660329,1735158653736,-500.0,0.000128,2]
[346660330,1735158653745,-1838.93,0.000128,2]
[346660331,1735158653754,-500.0,0.000128,2]
[346660332,1735158653763,-794.27,0.000128,2]
[346660333,1735158653773,-500.0,0.000128,2]
[346660334,1735158653782,-500.0,0.000128,2]
[346660335,1735158653792,-1985.69,0.000128,2]
[346660336,1735158653801,-500.0,0.000128,2]
[346660337,1735158653810,-515.6,0.000128,2]
[346660338,1735158653820,-2169.49,0.000128,2]
[346660339,1735158653829,-500.0,0.000128,2]
[346660340,1735158653838,-2231.15,0.000128,2]
[346660341,1735158653848,-500.0,0.000128,2]
[346660342,1735158653858,-500.0,0.000128,2]
[346660343,1735158653868,-500.0,0.000128,2]
[346660344,1735158653877,-707.21,0.000128,2]
[346660345,1735158653888,-500.0,0.000128,2]
[346660346,1735158653898,-633.17,0.000128,2]
[346660347,1735158653908,-500.0,0.000128,2]
[346660348,1735158653917,-500.0,0.000128,2]
[346660349,1735158653927,-500.0,0.000128,2]
[346660350,1735158653936,-500.0,0.000128,2]
[346660351,1735158653946,-541.18,0.000128,2]
[346660352,1735158653961,-500.0,0.000128,2]
[346660353,1735158653971,-500.0,0.000128,2]
[346660354,1735158653980,-500.0,0.000128,2]
[346660355,1735158653989,-793.5,0.000128,2]
[346660356,1735158653999,-500.0,0.000128,2]
[346660357,1735158654009,-500.0,0.000128,2]
[346660358,1735158654019,-500.0,0.000128,2]
[346660359,1735158654029,-1134.59,0.000128,2]
[346660360,1735158654038,-500.0,0.000128,2]
[346660361,1735158654048,-1228.87,0.000128,2]
[346660362,1735158654059,-862.61,0.000128,2]
[346660363,1735158654075,-701.52,0.000128,2]
[346660364,1735158654086,-551.35,0.000128,2]
[346660365,1735158654096,-500.0,0.000128,2]
[346660366,1735158654106,-1217.57,0.000128,2]
[346660367,1735158654115,-867.28,0.000128,2]
[346660368,1735158654125,-500.0,0.00012801,2]
[346660369,1735158654134,-500.0,0.00012801,2]
[346660370,1735158654143,-538.71,0.00012801,2]
[346660371,1735158654153,-164.86,0.00012801,2]
[346660372,1735158654162,-500.0,0.00012801,2]
[346660373,1735158654172,-331.78,0.00012801,2]
[346660374,1735158654181,-435.82,0.00012801,2]
[346660375,1735158654190,-500.0,0.00012801,2]
[346660376,1735158654200,-500.0,0.00012801,2]
[346660377,1735158654211,-310.08,0.00012801,2]
[346660378,1735158654220,-500.0,0.00012801,2]
[346660379,1735158654230,-152.18,0.00012801,2]
[346660380,1735158654240,-500.0,0.00012801,2]
[346660381,1735158654250,-500.0,0.00012801,2]
[346660382,1735158654259,-500.0,0.00012801,2]
[346660383,1735158654268,-500.0,0.00012801,2]
[346660384,1735158654278,-500.0,0.00012801,2]
[346660385,1735158654287,-163.25,0.00012801,2]
[346660386,1735158654297,-570.59,0.00012801,2]
[346660387,1735158654306,-500.0,0.00012801,2]
[346660388,1735158654317,-500.0,0.00012801,2]
[346660389,1735158654331,-500.0,0.00012801,2]
[346660390,1735158654340,-500.0,0.00012801,2]
[346660391,1735158654349,-390.6,0.00012801,2]
[346660392,1735158654357,-279.71,0.00012801,2]
[346660393,1735158654366,-497.76,0.00012801,2]
[346660394,1735158654375,-500.0,0.00012801,2]
[346660395,1735158654385,-172.09,0.00012801,2]
[346660396,1735158654394,-326.51,0.00012801,2]
[346660397,1735158654404,-442.74,0.00012801,2]
[346660398,1735158654413,-382.42,0.00012801,2]
[346660399,1735158654422,-500.0,0.00012801,2]
[346660400,1735158654431,-420.77,0.00012801,2]
[346660401,1735158654441,-257.75,0.00012801,2]
[346660402,1735158654450,-314.46,0.00012801,2]
[346660403,1735158654460,-500.0,0.00012801,2]
[346660404,1735158654470,-500.0,0.00012801,2]
[346660405,1735158654479,-500.0,0.00012801,2]
[346660406,1735158654488,-500.0,0.00012801,2]
[346660407,1735158654497,-500.0,0.00012801,2]
[346660408,1735158654506,-500.0,0.00012801,2]
[346660409,1735158654516,-482.52,0.00012801,2]
[346660410,1735158654525,-500.0,0.00012801,2]
[346660411,1735158654534,-592.61,0.00012801,2]
[346660412,1735158654543,-500.0,0.00012801,2]
[346660413,1735158654553,-500.0,0.00012801,2]
[346660414,1735158654562,-583.9,0.00012801,2]
[346660415,1735158654571,-500.0,0.00012801,2]
[346660416,1735158654581,-500.0,0.00012801,2]
[346660417,1735158654590,-500.0,0.00012801,2]
[346660418,1735158654599,-151.0,0.00012801,2]
[346660419,1735158654609,-500.0,0.00012801,2]
[346660420,1735158654618,-500.0,0.00012801,2]
[346660421,1735158654627,-500.0,0.00012801,2]
[346660422,1735158654640,-500.0,0.00012801,2]
[346660423,1735158654649,-500.0,0.00012801,2]
[346660424,1735158654659,-626.61,0.00012801,2]
[346660425,1735158654668,-500.0,0.00012801,2]
[346660426,1735158654678,-516.54,0.00012801,2]
[346660427,1735158654687,-276.55464606,0.00012801,2]
[346660428,1735158654696,-445.49,0.00012801,2]